[Event "44th Chess Olympiad Open 2022"]
[Site "Chennai"]
[Date "2022.08.05"]
[Round "7.30"]
[White "Berg, Emanuel"]
[Black "Mehdi Hasan Parag"]
[Result "1-0"]
[ECO "B19"]
[WhiteElo "2533"]
[BlackElo "2227"]
[Annotator "TA"]
[PlyCount "175"]
[EventDate "2022.07.29"]
[EventType "team-tourn"]
[EventCountry "IND"]
[SourceTitle "playchess.com"]
[Source "ChessBase"]
[SourceQuality "1"]
[WhiteTeam "Sweden"]
[BlackTeam "Bangladesh"]
[WhiteTeamCountry "SWE"]
[BlackTeamCountry "BAN"]
[TimeControl "40/5400+30:1800+30"]

{[%evp 26,175,8,0,0,-24,0,-29,-29,-14,-23,-92,-68,-117,-132,-144,-144,-143,-84,-99,-87,-86,-93,-91,-69,-69,-78,-191,-149,-131,-47,-33,-44,-37,0,0,0,-15,0,0,0,0,0,-14,-12,-23,-21,-22,-25,-22,-22,-34,-29,-32,-32,-37,-32,-35,-31,-48,-34,-39,-34,-35,0,0,0,0,0,0,0,0,0,0,0,0,0,0,0,0,0,0,39,11,11,11,12,15,11,12,39,0,12,0,13,12,39,13,12,8,10,10,9,9,8,8,8,8,13,13,13,13,308,245,208,221,195,97,95,96,96,100,163,162,466,543,975,981,951,920,814,0,810,0,377,355,819,820,787,772,619,476,733,703,29982,29983,29983,29983,29984,29985,29981,29980]} 1. e4 {[%emt 0:00:03]} c6 {[%emt 0:00:09]} 2. d4 {[%emt 0:00:09]} d5 {[%emt 0:00:21]} 3. Nc3 {[%emt 0:00:07]} dxe4 {[%emt 0:00:00]} 4. Nxe4 {[%emt 0:00:07]} Bf5 {[%emt 0:00:00]} 5. Ng3 {[%emt 0:00:17]} Bg6 {[%emt 0:00:00]} 6. h4 {[%emt 0:00:26]} h6 {[%emt 0:00:00]} 7. Nf3 {[%emt 0:00:14]} Nd7 {[%emt 0:00:03]} 8. h5 {[%emt 0:01:14]} Bh7 {[%emt 0:00:05]} 9. Bd3 {[%emt 0:00:10]} Bxd3 {[%emt 0:00:17]} 10. Qxd3 {[%emt 0:00:03]} e6 {[%emt 0:00:17]} 11. Bd2 {[%emt 0:00:40]} Ngf6 {[%emt 0:00:16]} 12. O-O-O {[%emt 0:00:48]} Be7 {[%emt 0:00:25]} 13. Kb1 {[%emt 0:23:12]} O-O {[%emt 0:00:50]} 14. Qe2 {[%emt 0:01:14]} c5 {[%emt 0:05:42] B19: Classical Caro-Kann: 4...Bf5 main line.} 15. Bc1 {[%emt 0:02:40]} Rc8 {[%emt 0:00:06]} (15... Qb6 {seems wilder.} 16. dxc5 Nxc5 17. Be3 Rfd8) 16. Nf1 {[%emt 0:08:39]} cxd4 {[%emt 0:08:54] Black has an edge.} 17. Nxd4 {[%emt 0:03:01]} Qb6 {[%emt 0:19:44] [#]} 18. c4 $146 {[%emt 0:17:06]} (18. g4 $11) ({Predecessor:} 18. Rh3 Nc5 19. Nb3 Nxb3 20. Rxb3 Qc6 21. Ne3 Rfd8 22. Rbd3 Rxd3 23. Rxd3 a6 24. g4 {½-½ (72) Wang,L (2415)-Lou,Y (2489) Tagaytay City 2013}) 18... Nc5 {[%emt 0:09:14]} 19. f3 {[%emt 0:07:36] Inhibits Nce4.} (19. Be3 $15) 19... Rfd8 $17 {[%emt 0:00:00]} 20. Be3 {[%emt 0:05:34]} Na4 $1 {[%emt 0:00:00]} 21. Nb3 {[%emt 0:02:10]} Qa6 {[%emt 0:03:11]} ({Black should try} 21... Rxd1+ 22. Qxd1 Qa6) 22. Rxd8+ {[%emt 0:11:33]} Rxd8 {[%emt 0:00:00]} 23. Ng3 {[%emt 0:06:10]} Qd6 {[%emt 0:00:00]} 24. Bf2 {[%emt 0:01:07]} b6 {[%emt 0:00:00]} 25. Nd4 {[%emt 0:01:43]} Qd7 {[%emt 0:02:24][%cal Oe7a3] Threatens to win with ...Ba3!} 26. Nc2 {[%emt 0:08:34] Prevents Ba3.} (26. Nb3 $17 {was necessary.}) 26... Bc5 {[%emt 0:03:33]} 27. Bxc5 {[%emt 0:00:00]} bxc5 {[%emt 0:03:32]} (27... Nxc5 $17 28. Qe3 Qc7) 28. Qe3 $1 $15 {[%emt 0:00:00]} Qd6 {[%emt 0:04:55]} 29. Ne2 {[%emt 0:00:00]} Qd2 {[%emt 0:02:33]} (29... Nb6 $5 {[%cal Rb6c4]} 30. b3 Qd2 $15) 30. Qxd2 $1 {[%emt 0:00:20]} Rxd2 {[%emt 0:00:04]} 31. Nf4 {[%emt 0:02:21]} e5 {[%emt 0:02:12]} 32. Kc1 {[%emt 0:00:00]} Rxc2+ {[%emt 0:01:01]} 33. Kxc2 {[%emt 0:00:00]} exf4 {[%emt 0:00:02]} 34. Rh4 {[%emt 0:00:00]} Kf8 {[%emt 0:01:41]} 35. b3 {[%emt 0:00:00]} Nb6 {[%emt 0:00:14]} 36. Rxf4 {[%emt 0:00:00]} Nbd7 {[%emt 0:02:52]} 37. Rh4 $1 {[%emt 0:00:13]} Ke7 {[%emt 0:00:30]} 38. Rh1 {[%emt 0:01:15]} Ne5 {[%emt 0:00:56]} 39. Kd2 {[%emt 0:00:41]} Nc6 {[%emt 0:00:30]} 40. g4 {[%emt 0:00:31]} Nd4 {[%emt 0:00:56]} 41. Ke3 {[%emt 0:06:00]} Kd6 {[%emt 0:05:20]} 42. Rh2 {[%emt 0:02:42]} a5 {[%emt 0:00:24]} 43. Rd2 {[%emt 0:02:16]} Ke5 {[%emt 0:00:00]} 44. Rg2 {[%emt 0:02:28]} Nd7 {[%emt 0:04:24]} 45. f4+ {[%emt 0:01:55]} Ke6 {[%emt 0:00:43]} 46. g5 {[%emt 0:03:27]} Nb8 {[%emt 0:06:52]} 47. Ke4 {[%emt 0:01:11]} Nbc6 {[%emt 0:00:49]} 48. gxh6 {[%emt 0:00:42]} gxh6 {[%emt 0:00:13]} 49. Rg8 {[%emt 0:01:53]} Nf5 {[%emt 0:10:24]} 50. Re8+ {[%emt 0:00:00]} Nce7 {[%emt 0:00:34]} 51. Ra8 {[%emt 0:00:00]} Nd6+ {[%emt 0:00:41]} 52. Kf3 {[%emt 0:00:40]} Nc6 {[%emt 0:01:18]} 53. Kg4 {[%emt 0:02:49]} f5+ {[%emt 0:02:17]} 54. Kf3 {[%emt 0:01:01][%mdl 1024] White has compensation.} Ke7 {[%emt 0:02:42]} 55. Rh8 {[%emt 0:01:43]} Nf7 {[%emt 0:02:33]} 56. Rc8 {[%emt 0:00:48]} Kd7 {[%emt 0:02:33]} 57. Rg8 {[%emt 0:01:05]} Ke7 {[%emt 0:04:15]} 58. Rc8 {[%emt 0:01:20]} Kd7 {[%emt 0:04:11]} 59. Rg8 {[%emt 0:01:10]} Ke7 {[%emt 0:00:37]} 60. Ke3 {[%emt 0:02:43]} Ncd8 {[%emt 0:01:37]} 61. Rg6 {[%emt 0:01:56]} Ne6 {[%emt 0:01:33]} 62. a4 {[%emt 0:02:07]} Nd4 {[%emt 0:00:48]} 63. Ra6 {[%emt 0:00:46]} Nxb3 {[%emt 0:01:05]} 64. Kd3 {[%emt 0:00:02]} Nd6 {[%emt 0:01:07]} 65. Kc3 {[%emt 0:00:20]} Nd4 {[%emt 0:00:24]} 66. Rxa5 {[%emt 0:01:15]} Ne2+ {[%emt 0:02:31] Pair of Knights!} 67. Kb3 {[%emt 0:00:00] White wants to play Ra7+.} Nxf4 {[%emt 0:00:42]} 68. Ra7+ {[%emt 0:00:55]} Ke6 $2 {[%emt 0:07:32][%mdl 8192]} (68... Kf6 $1 $11) 69. a5 $1 $18 Ne2 {[%emt 0:03:02] [#]} (69... Nxh5 $2 70. a6 Nf6 71. Rc7 $18) 70. Rh7 $1 {[%emt 0:00:46]} Nd4+ {[%emt 0:00:00]} 71. Kc3 {[%emt 0:00:56]} (71. Ka4 $18 {has better winning chances.} f4 72. Rxh6+ Ke5 73. Rg6) 71... Nf7 $16 {[%emt 0:00:00]} 72. a6 {[%emt 0:00:41] And now a7 would win.} Nc6 {[%emt 0:00:00] [#]} 73. Rg7 $1 {[%emt 0:00:00]} Na7 {[%emt 0:01:31]} (73... Nfe5 $16) 74. Rg6+ {[%emt 0:00:25]} Ke7 $2 {[%emt 0:00:28]} (74... Ke5 {is tougher.} 75. Rg8 (75. Rg7 Ke6 $16) 75... Ng5 76. Re8+ Ne6) 75. Kd2 $18 {[%emt 0:00:35] Strongly threatening Ke3.} f4 {[%emt 0:00:31]} 76. Ke2 {[%emt 0:00:28]} Kd7 {[%emt 0:04:29]} 77. Rf6 {[%emt 0:00:54]} Ke7 {[%emt 0:00:32]} 78. Rg6 {[%emt 0:00:43]} Kd7 {[%emt 0:00:11]} 79. Rf6 {[%emt 0:00:10]} (79. Rg8 $142 Nc8 80. Kf3) 79... Ke7 $1 {[%emt 0:00:25]} 80. Rf5 {[%emt 0:00:31]} Nd8 $2 {[%emt 0:02:27]} (80... Nc6 81. Rxc5 Kd7) 81. Rxf4 {[%emt 0:01:01]} Ne6 {[%emt 0:00:11]} 82. Rg4 {[%emt 0:00:03]} Nc6 {[%emt 0:01:25]} 83. Ke3 {[%emt 0:00:21]} Ng5 {[%emt 0:00:21]} (83... Ne5 $142 84. Rg8 Nxc4+ 85. Kf2 Nd6) 84. Rg1 {[%emt 0:00:21]} Kd6 {[%emt 0:00:54] [#]} 85. Rxg5 $1 {[%emt 0:00:32][%mdl 576] Promotion. White mates.} hxg5 {[%emt 0:00:06]} 86. h6 {[%emt 0:00:05][%cal Bh5h6,Bh6h7][%mdl 32]} Ne5 {[%emt 0:00:47]} 87. h7 {[%emt 0:00:14]} Nxc4+ {[%emt 0:00:30]} 88. Ke2 {[%emt 0:01:04] White used his chance.  Weighted Error Value: White=0.10 (very precise) /Black=0.09 (flawless)} 1-0

[Event "44th Chess Olympiad Open 2022"]
[Site "Chennai"]
[Date "2022.08.05"]
[Round "7.30"]
[White "Hillarp Persson, Tiger"]
[Black "Rahman, Ziaur"]
[Result "1/2-1/2"]
[ECO "A13"]
[WhiteElo "2516"]
[BlackElo "2424"]
[Annotator "TA"]
[PlyCount "115"]
[EventDate "2022.07.29"]
[EventType "team-tourn"]
[EventCountry "IND"]
[SourceTitle "playchess.com"]
[Source "ChessBase"]
[SourceQuality "1"]
[WhiteTeam "Sweden"]
[BlackTeam "Bangladesh"]
[WhiteTeamCountry "SWE"]
[BlackTeamCountry "BAN"]
[TimeControl "40/5400+30:1800+30"]

{[%evp 9,115,0,6,0,10,6,17,1,0,0,21,-6,-2,-2,0,6,6,-4,-3,0,0,-18,22,26,28,13,51,45,60,36,78,87,113,111,106,101,119,118,112,110,117,110,98,20,12,22,32,4,2,12,12,0,0,0,8,0,0,0,0,0,0,0,0,0,0,0,0,0,0,0,0,0,0,0,0,0,0,0,8,0,0,0,0,0,0,0,0,0,0,0,0,0,0,0,0,0,0,0,0,0,0,0,0,0,0,0,0,0]} 1. c4 {[%emt 0:00:04]} e6 {[%emt 0:01:59]} 2. Nf3 {[%emt 0:00:08]} d5 {[%emt 0:00:16]} 3. g3 {[%emt 0:00:06]} Nf6 {[%emt 0:00:28]} 4. Bg2 {[%emt 0:00:07]} dxc4 {[%emt 0:03:10]} 5. O-O {[%emt 0:02:08]} a6 {[%emt 0:00:17]} 6. Qc2 {[%emt 0:01:34] A13: English Opening: 1...e6.} Bd6 {[%emt 0:02:53]} 7. Qxc4 {[%emt 0:00:00]} b5 {[%emt 0:01:23]} 8. Qb3 {[%emt 0:09:47] was the old line (8.Qc2).} Bb7 {[%emt 0:05:54]} 9. a4 {[%emt 0:02:31]} Nbd7 {[%emt 0:05:01]} 10. d4 {[%emt 0:03:21] Inhibits Nc5.} (10. Nc3 $5 {[%cal Ra4b5]}) 10... O-O {[%emt 0:00:00]} 11. Bg5 {[%emt 0:06:20]} Rb8 {[%emt 0:02:44] [#]} 12. axb5 $146 {[%emt 0:00:00]} ({Predecessor:} 12. Nbd2 h6 13. Bxf6 Qxf6 14. axb5 axb5 15. Ra5 c5 16. dxc5 Nxc5 17. Qe3 Bxf3 18. Bxf3 {½-½ (26) Shetty,A (2453)-Turgut,A (2275) Philadelphia 2021}) 12... axb5 {[%emt 0:17:51]} 13. Rc1 {[%emt 0:03:08]} h6 {[%emt 0:00:00]} 14. Bf4 {[%emt 0:12:17]} Bxf4 {[%emt 0:00:00]} 15. gxf4 {[%emt 0:00:00]} Nd5 {[%emt 0:00:00]} 16. e3 {[%emt 0:00:00]} Qe7 {[%emt 0:02:30]} 17. Ra7 {[%emt 0:00:00]} b4 {[%emt 0:11:31]} 18. Nbd2 {[%emt 0:06:01][%cal Bb1d2,Bd2b3,Bb3c5][%mdl 32]} Rfc8 {[%emt 0:01:00]} 19. Qd1 {[%emt 0:27:03]} N5b6 {[%emt 0:10:13] [#]} 20. Nb3 $1 {[%emt 0:02:54]} Bd5 {[%emt 0:06:10]} 21. Raxc7 {[%emt 0:00:00]} Rxc7 {[%emt 0:00:00]} 22. Rxc7 {[%emt 0:00:00]} Qd8 {[%emt 0:00:20]} 23. Rc1 {[%emt 0:00:00]} Na4 {[%emt 0:05:40]} 24. Qc2 {[%emt 0:07:30]} Ndb6 {[%emt 0:06:10]} 25. Nc5 {[%emt 0:15:37]} Rc8 {[%emt 0:03:00][%cal Ob4b3]} 26. Qe2 {[%emt 0:00:00] White is more active.} (26. Ne5 $16) 26... Nxc5 $1 $11 {[%emt 0:06:38]} 27. dxc5 {[%emt 0:00:28]} Na4 $1 {[%emt 0:01:17]} 28. Ne5 {[%emt 0:00:29] [#] And now Bxd5 would win.} (28. Qd2 $5 {[%cal Rd2b4]} Nxc5 29. Qxb4 $11) 28... Bxg2 {[%emt 0:00:00] The position is equal.} (28... Rxc5 {is more complex.} 29. Ra1 Bxg2 30. Kxg2 Nb6) 29. Kxg2 {[%emt 0:00:09] Black must now prevent Rd1.} Rxc5 {[%emt 0:00:00]} 30. Rxc5 {[%emt 0:00:26]} (30. Ra1 {looks sharper.} Nb6 31. Qa6 g5 32. Qa7) 30... Nxc5 {[%emt 0:00:05][%mdl 4096] Endgame KQN-KQN} 31. Qc4 {[%emt 0:01:30][%csl LRb4,LRc5]} Qb6 {[%emt 0:01:56]} 32. Kg3 {[%emt 0:00:38]} f6 {[%emt 0:03:30]} 33. Nf3 {[%emt 0:01:21]} b3 {[%emt 0:01:10]} 34. Nd4 {[%emt 0:00:12]} Kh8 {[%emt 0:00:29]} 35. Kg2 {[%emt 0:01:34]} e5 {[%emt 0:00:12]} 36. Ne2 {[%emt 0:00:17]} Qc6+ {[%emt 0:00:40]} 37. Kg1 {[%emt 0:00:12]} Qd6 {[%emt 0:00:52]} 38. fxe5 {[%emt 0:00:41]} fxe5 {[%emt 0:00:00]} 39. Ng3 {[%emt 0:03:05]} Qd1+ {[%emt 0:03:23]} 40. Kg2 {[%emt 0:00:00]} Qd6 {[%emt 0:00:45]} 41. h4 {[%emt 0:04:24]} Qc6+ {[%emt 0:03:23]} 42. Kf1 {[%emt 0:00:00][%cal Bg2f1,Bf1e2,Be2d3,Bd3e4,Be4f4,Bf4g5,Bg5g6,Bg6h5,Bh5g4][%mdl 32]} Qd6 {[%emt 0:03:02]} 43. Ke2 {[%emt 0:00:00]} Kh7 {[%emt 0:17:21]} 44. Ne4 {[%emt 0:15:10]} Nxe4 {[%emt 0:00:00]} 45. Qxe4+ {[%emt 0:00:09] KQ-KQ} Qg6 {[%emt 0:00:00]} 46. Kd3 {[%emt 0:03:21] Threatening mate with h5.} h5 {[%emt 0:02:30]} 47. Qxg6+ {[%emt 0:00:06]} Kxg6 {[%emt 0:00:00] KP-KP} 48. Ke4 {[%emt 0:00:20]} Kf6 {[%emt 0:00:00]} 49. f4 {[%emt 0:02:09]} exf4 {[%emt 0:00:00]} 50. Kxf4 {[%emt 0:00:00] K3P-K3P} Ke6 {[%emt 0:00:00]} (50... g6 $5 51. e4 Ke6 $11) 51. e4 {[%emt 0:03:24]} g6 {[%emt 0:00:01]} (51... Kf6 $5) 52. Kg5 {[%emt 0:01:07]} Ke5 $1 {[%emt 0:00:05]} 53. Kxg6 {[%emt 0:00:06]} Kxe4 {[%emt 0:00:03]} 54. Kxh5 {[%emt 0:00:06]} Kd3 $1 {[%emt 0:00:04]} 55. Kg4 {[%emt 0:00:27] Intending h5 and mate.} Kc2 {[%emt 0:00:03]} 56. h5 {[%emt 0:00:06][%cal Bh4h5,Bh5h6,Bh6h7][%mdl 32] h6 would kill now.} Kxb2 {[%emt 0:00:04]} 57. h6 {[%emt 0:00:05] White wants to mate with h7.} Ka2 {[%emt 0:00:17]} 58. h7 {[%emt 0:00:12] Weighted Error Value: White=0.06 (flawless) /Black=0.05 (flawless)} 1/2-1/2

[Event "44th Chess Olympiad Open 2022"]
[Site "Chennai"]
[Date "2022.08.05"]
[Round "7.30"]
[White "Murshed, Niaz"]
[Black "Westerberg, Jonathan"]
[Result "1/2-1/2"]
[ECO "D27"]
[WhiteElo "2413"]
[BlackElo "2476"]
[Annotator "TA"]
[PlyCount "128"]
[EventDate "2022.07.29"]
[EventType "team-tourn"]
[EventCountry "IND"]
[SourceTitle "playchess.com"]
[Source "ChessBase"]
[SourceQuality "1"]
[WhiteTeam "Bangladesh"]
[BlackTeam "Sweden"]
[WhiteTeamCountry "BAN"]
[BlackTeamCountry "SWE"]
[TimeControl "40/5400+30:1800+30"]

{[%evp 16,128,0,0,4,-18,-17,-27,-8,-9,-9,-9,8,0,16,16,20,12,14,15,35,22,25,0,0,0,0,0,32,16,22,13,12,5,5,4,5,4,4,7,8,5,7,4,10,4,22,0,25,16,25,18,14,0,23,23,26,25,26,26,29,25,26,27,58,0,34,26,34,31,30,32,60,0,6,6,11,0,18,7,0,0,61,61,61,68,82,82,69,0,0,0,4,7,10,5,9,0,0,0,0,0,0,0,0,0,0,0,0,0,16,23,23,13,25]} 1. d4 {[%emt 0:00:10]} Nf6 {[%emt 0:00:37]} 2. Nf3 {[%emt 0:00:18]} d5 {[%emt 0:01:15]} 3. c4 {[%emt 0:00:12]} e6 {[%emt 0:01:37]} 4. Nc3 {[%emt 0:05:04]} dxc4 {[%emt 0:00:10]} 5. e3 {[%emt 0:01:05]} a6 {[%emt 0:00:08]} 6. Bxc4 {[%emt 0:01:00]} b5 {[%emt 0:00:07]} 7. Bd3 {[%emt 0:09:44]} Bb7 {[%emt 0:00:30]} 8. O-O {[%emt 0:01:31]} c5 {[%emt 0:00:40]} 9. Qe2 {[%emt 0:06:03]} Nbd7 {[%emt 0:00:26] D27: Queen's Gambit Accepted: Classical main line: 7 e4!? and 7 a4.} 10. h3 {[%emt 0:00:27]} Be7 {[%emt 0:04:13]} 11. Rd1 {[%emt 0:00:34] [#]} O-O $146 {[%emt 0:06:56] Black has an edge.} ({Predecessor:} 11... Qc7 12. e4 cxd4 13. Nxd4 O-O 14. Bg5 Rac8 15. Rac1 Qb8 16. a3 Rfd8 {½-½ (48) Johansen,S (1938)-Haarr,J (2204) Fagernes 2011}) 12. dxc5 {[%emt 0:08:19]} Bxc5 {[%emt 0:00:34]} 13. e4 {[%emt 0:00:31]} e5 {[%emt 0:00:16] Prevents Bf4.} 14. Be3 {[%emt 0:08:39]} Qb6 {[%emt 0:09:06]} 15. Bxc5 {[%emt 0:05:25]} Nxc5 {[%emt 0:00:36]} 16. Qe3 {[%emt 0:05:45]} (16. Nxe5 Rfe8 17. b4 (17. Nd5 $2 Nxd5 18. exd5 Nxd3 $19) 17... Ncxe4 18. Nxe4 Rxe5 19. Nxf6+ Qxf6 $15) 16... Rfe8 {[%emt 0:03:33]} (16... Qa7 {is more complex.} 17. Nxe5 Rfe8 18. b4 Ncxe4 19. Qxa7 Rxa7 20. Nxe4 Bxe4 21. Ng4 Bxd3 22. Nxf6+ gxf6 23. Rxd3 a5) 17. b4 {[%emt 0:08:54]} Ncd7 {[%emt 0:01:31]} 18. Qxb6 {[%emt 0:04:41]} Nxb6 {[%emt 0:00:06]} 19. Nd2 {[%emt 0:00:05]} Rac8 {[%emt 0:10:06]} 20. Rac1 {[%emt 0:01:04]} Rc7 {[%emt 0:00:26]} 21. Nb3 {[%emt 0:05:00]} Nbd7 {[%emt 0:01:57] Inhibits Nc5.} 22. f3 {[%emt 0:03:33]} Rec8 {[%emt 0:01:17]} 23. Ne2 {[%emt 0:00:32]} Kf8 {[%emt 0:01:34]} 24. Rxc7 {[%emt 0:03:51]} Rxc7 {[%emt 0:00:05]} 25. Rc1 {[%emt 0:00:03]} Rxc1+ {[%emt 0:01:34]} 26. Nexc1 {[%emt 0:00:05]} Ke7 {[%emt 0:00:38]} 27. Kf2 {[%emt 0:00:46]} Ne8 {[%emt 0:05:58]} 28. Ne2 {[%emt 0:01:43]} Kd6 {[%emt 0:00:42]} 29. Nc3 {[%emt 0:01:11]} Bc6 {[%emt 0:00:56]} 30. Na5 {[%emt 0:03:09]} Nb6 {[%emt 0:00:17]} 31. Bc2 {[%emt 0:02:38]} Ba8 {[%emt 0:03:06]} 32. Bb3 {[%emt 0:01:49]} Ke7 {[%emt 0:01:37]} 33. Nd1 {[%emt 0:05:05]} g6 {[%emt 0:00:29]} 34. Ne3 {[%emt 0:02:55]} Nd6 {[%emt 0:00:05]} 35. g4 {[%emt 0:00:12]} f6 {[%emt 0:03:57]} 36. h4 {[%emt 0:00:35]} Kf8 {[%emt 0:12:01]} 37. Be6 {[%emt 0:02:30]} Ke7 {[%emt 0:04:50]} 38. Bg8 {[%emt 0:01:10]} Kf8 {[%emt 0:00:11]} 39. Bb3 {[%emt 0:00:04]} ({Of course not} 39. Bxh7 Kg7 40. Bxg6 Kxg6 $17) 39... Ke7 {[%emt 0:02:46]} 40. Ke2 {[%emt 0:01:30]} (40. g5 $14) 40... Kf8 {[%emt 0:07:53]} (40... f5 $5) 41. Be6 {[%emt 0:30:45]} Ke7 {[%emt 0:30:45]} 42. Bg8 {[%emt 0:00:43]} Kf8 {[%emt 0:00:12]} 43. Bb3 {[%emt 0:00:16]} ({But not} 43. Bxh7 Kg7 44. Bxg6 Kxg6 $15) 43... Ke7 {[%emt 0:01:16][%cal Of6f5]} 44. h5 {[%emt 0:00:48]} (44. g5 $14) 44... Kf8 {[%emt 0:01:15]} 45. Be6 {[%emt 0:00:00]} Ne8 {[%emt 0:00:00]} 46. Bb3 {[%emt 0:00:00]} Nc7 {[%emt 0:00:00]} 47. h6 {[%emt 0:00:00]} Nd7 {[%emt 0:00:00]} 48. Kd3 {[%emt 0:00:00]} Ne8 {[%emt 0:00:00]} (48... Ke7 $11) 49. Be6 $1 $14 {[%emt 0:00:00]} Nb6 {[%emt 0:00:00]} 50. Nb3 {[%emt 0:00:00][%cal Og4g5]} Nc7 {[%emt 0:00:00]} 51. Nc5 {[%emt 0:00:00][%cal Og4g5]} Bb7 {[%emt 0:00:00]} 52. g5 {[%emt 0:02:13] White is more active.} ({Don't play} 52. Nxb7 Nxe6 53. Nc5 Ke7 $11) (52. Bb3 $14 Bc8 53. Kc3) 52... Nxe6 $11 {[%emt 0:00:00]} 53. Nxe6+ {[%emt 0:00:06][%mdl 4096] Endgame KBN-KNN} Ke7 {[%emt 0:00:01]} 54. Nc5 {[%emt 0:00:31]} Bc8 {[%emt 0:00:05]} 55. gxf6+ {[%emt 0:00:43]} Kxf6 {[%emt 0:00:20]} 56. Nd5+ {[%emt 0:00:16]} Nxd5 {[%emt 0:01:14]} 57. exd5 {[%emt 0:00:06] KB-KN} Bf5+ {[%emt 0:04:13]} 58. Ne4+ {[%emt 0:03:13]} Ke7 {[%emt 0:01:18]} 59. Ke3 {[%emt 0:00:11] [#] Black must now prevent Ng5.} Bxe4 {[%emt 0:02:06]} 60. fxe4 {[%emt 0:00:16]} Kf6 {[%emt 0:00:37]} 61. Kf3 {[%emt 0:00:36]} Ke7 {[%emt 0:00:41]} 62. Kg4 {[%emt 0:00:13]} Kf6 {[%emt 0:00:30]} 63. Kh4 {[%emt 0:00:09]} Kf7 {[%emt 0:02:27]} 64. Kg5 {[%emt 0:00:40]} Ke7 {[%emt 0:00:02] Weighted Error Value: White=0.08 (flawless) /Black=0.08 (flawless)} 1/2-1/2